lending/lending_fUSD_20240219
["ID","MTS","AMOUNT","RATE_DAILY","PERIOD"]
[314420783,1708329033352,-224.5960252,0.00038,2]
[314420784,1708329033361,-224.5960252,0.00038,2]
[314420785,1708329033371,-224.5960252,0.00038,2]
[314420786,1708329033381,-224.5960252,0.00038,2]
[314420787,1708329033390,-224.5960252,0.00038,2]
[314420788,1708329033400,-224.5960252,0.00038,2]
[314420789,1708329033410,-224.5960252,0.00038,2]
[314420790,1708329033419,-224.5960252,0.00038,2]
[314420791,1708329033429,-224.5960252,0.00038,2]
[314420792,1708329033438,-224.5960252,0.00038,2]
[314420793,1708329033447,-224.5960252,0.00038,2]
[314420794,1708329033457,-224.5960252,0.00038,2]
[314420795,1708329033466,-224.5960252,0.00038,2]
[314420796,1708329033477,-224.5960252,0.00038,2]
[314420797,1708329033486,-224.5960252,0.00038,2]
[314420798,1708329033496,-224.5960252,0.00038,2]
[314420799,1708329033505,-224.5960252,0.00038,2]
[314420800,1708329033515,-224.5960252,0.00038,2]
[314420801,1708329033524,-224.5960252,0.00038,2]
[314420802,1708329033533,-224.5960252,0.00038,2]
[314420803,1708329033544,-224.5960252,0.00038,2]
[314420804,1708329033553,-224.5960252,0.00038,2]
[314420805,1708329033562,-224.5960252,0.00038,2]
[314420806,1708329033571,-224.5960252,0.00038,2]
[314420807,1708329033581,-224.5960252,0.00038,2]
[314420808,1708329033590,-224.5960252,0.00038,2]
[314420809,1708329033599,-224.5960252,0.00038,2]
[314420810,1708329033608,-224.5960252,0.00038,2]
[314420811,1708329033617,-224.5960252,0.00038,2]
[314420812,1708329033626,-224.5960252,0.00038,2]
[314420813,1708329033635,-224.5960252,0.00038,2]
[314420814,1708329033645,-224.5960252,0.00038,2]
[314420815,1708329033654,-224.5960252,0.00038,2]
[314420816,1708329033663,-224.5960252,0.00038,2]
[314420817,1708329033673,-224.5960252,0.00038,2]
[314420818,1708329033682,-224.5960252,0.00038,2]
[314420819,1708329033691,-224.5960252,0.00038,2]
[314420820,1708329033701,-224.5960252,0.00038,2]
[314420821,1708329033711,-224.5960252,0.00038,2]
[314420822,1708329033720,-224.5960252,0.00038,2]
[314420823,1708329033729,-224.5960252,0.00038,2]
[314420824,1708329033738,-224.5960252,0.00038,2]
[314420825,1708329033747,-224.5960252,0.00038,2]
[314420826,1708329033756,-224.5960252,0.00038,2]
[314420827,1708329033765,-224.5960252,0.00038,2]
[314420828,1708329033774,-224.5960252,0.00038,2]
[314420829,1708329033783,-224.5960252,0.00038,2]
[314420830,1708329033792,-224.5960252,0.00038,2]
[314420831,1708329033801,-224.5960252,0.00038,2]
[314420832,1708329033810,-224.5960252,0.00038,2]
[314420833,1708329033819,-224.5960252,0.00038,2]
[314420834,1708329033828,-224.5960252,0.00038,2]
[314420835,1708329033837,-224.5960252,0.00038,2]
[314420836,1708329033846,-224.5960252,0.00038,2]
[314420837,1708329033855,-224.5960252,0.00038,2]
[314420838,1708329033864,-224.5960252,0.00038,2]
[314420839,1708329033873,-224.5960252,0.00038,2]
[314420840,1708329033881,-224.5960252,0.00038,2]
[314420841,1708329033890,-224.5960252,0.00038,2]
[314420842,1708329033899,-224.5960252,0.00038,2]
[314420843,1708329033908,-224.5960252,0.00038,2]
[314420844,1708329033917,-224.5960252,0.00038,2]
[314420845,1708329033926,-224.5960252,0.00038,2]
[314420846,1708329033935,-224.5960252,0.00038,2]
[314420847,1708329033947,-224.5960252,0.00038,2]
[314420848,1708329033956,-224.5960252,0.00038,2]
[314420849,1708329033966,-224.5960252,0.00038,2]
[314420850,1708329033974,-224.5960252,0.00038,2]
[314420851,1708329033984,-224.5960252,0.00038,2]
[314420852,1708329033992,-224.5960252,0.00038,2]
[314420853,1708329034001,-224.5960252,0.00038,2]
[314420854,1708329034010,-224.5960252,0.00038,2]
[314420855,1708329034019,-224.5960252,0.00038,2]
[314420856,1708329034030,-224.5960252,0.00038,2]
[314420857,1708329034038,-224.5960252,0.00038,2]
[314420858,1708329034047,-224.5960252,0.00038,2]
[314420859,1708329034056,-224.5960252,0.00038,2]
[314420860,1708329034066,-323.75011467,0.00038075,2]
[314420861,1708329034075,-463.74,0.00038112,2]
[314420862,1708329034084,-4105.79854593,0.00038167,2]
[314420863,1708329034093,-3577.0,0.00038228,2]
[314420864,1708329034115,-153.99,0.00038248,2]
[314420865,1708329034126,-156.65,0.00038267,2]
[314420866,1708329034136,-150.0,0.00038349,2]
[314420867,1708329034145,-323.75011467,0.0003835,2]
[314420868,1708329034155,-150.0,0.00038356,2]
[314420869,1708329034165,-550.72,0.00038356,15]
[314420870,1708329034174,-375.69,0.00038356,30]
[314420871,1708329034184,-615.4,0.00038367,2]
[314420872,1708329034194,-158.03932342,0.00038374,2]
[314420873,1708329034203,-543.24539615,0.00038388,12]
[314420874,1708329034213,-383.74859319,0.00038388,11]
[314420875,1708329034223,-19077.92818745,0.00038388,13]
[314420876,1708329034232,-605.900015,0.00038424,2]
[314420877,1708329034242,-4105.79854593,0.00038431,2]
[314420878,1708329034252,-353.14,0.00038448,2]
[314420879,1708329034262,-372.74,0.00038557,2]
[314420880,1708329034272,-156.65,0.00038573,2]
[314420881,1708329034281,-153.99,0.00038575,2]
[314420882,1708329034291,-216.0,0.000386,12]
[314420883,1708329034300,-323.75011467,0.00038626,2]
[314420884,1708329034310,-500.0,0.0003863,4]
[314420885,1708329034320,-500.0,0.0003863,4]
[314420886,1708329034329,-1203.16,0.0003863,4]
[314420887,1708329034338,-500.0,0.0003863,4]
[314420888,1708329034348,-500.0,0.0003863,4]
[314420889,1708329034357,-211.42205919,0.0003863,4]
[314420890,1708329034367,-500.0,0.0003863,4]
[314420891,1708329034376,-500.0,0.0003863,4]
[314420892,1708329034386,-500.0,0.0003863,4]
[314420893,1708329034396,-291.38315103,0.0003863,4]
[314420894,1708329034406,-500.0,0.0003863,4]
[314420895,1708329034416,-500.0,0.0003863,4]
[314420896,1708329034424,-368.10380821,0.0003863,4]
[314420897,1708329034433,-500.0,0.0003863,4]
[314420898,1708329034443,-385.7277098,0.0003863,4]
[314420899,1708329034453,-500.0,0.0003863,4]
[314420900,1708329034462,-532.2,0.0003863,4]
[314420901,1708329034471,-658.68,0.0003863,2]
[314420902,1708329034481,-500.0,0.0003863,4]
[314420903,1708329034490,-562.64672058,0.0003863,4]
[314420904,1708329034499,-538.36605413,0.0003863,4]
[314420905,1708329034509,-500.0,0.0003863,4]
[314420906,1708329034518,-674.8,0.0003863,4]
[314420907,1708329034527,-4013.06,0.0003863,4]
[314420908,1708329034537,-509.01837559,0.0003863,4]
[314420909,1708329034546,-519.59487011,0.0003863,2]
[314420910,1708329034556,-505.22541427,0.0003863,4]
[314420911,1708329034565,-500.0,0.0003863,4]
[314420912,1708329034574,-500.0,0.0003863,2]
[314420913,1708329034584,-500.0,0.0003863,4]
[314420914,1708329034593,-516.1039973,0.0003863,4]
[314420915,1708329034602,-500.0,0.0003863,4]
[314420916,1708329034612,-500.0,0.0003863,2]
[314420917,1708329034622,-552.41970185,0.0003863,4]
[314420918,1708329034631,-151.09,0.0003863,2]
[314420919,1708329034641,-150.0,0.0003863,2]
[314420920,1708329034651,-150.0,0.0003863,2]
[314420921,1708329034661,-150.0,0.0003863,2]
[314420922,1708329034670,-150.0,0.0003863,2]
[314420923,1708329034680,-420.09,0.0003863,2]
[314420924,1708329034689,-425.59,0.0003863,2]
[314420925,1708329034698,-412.45,0.0003863,2]
[314420926,1708329034707,-419.31,0.0003863,2]
[314420927,1708329034717,-412.45,0.0003863,2]
[314420928,1708329034726,-419.31,0.0003863,2]
[314420929,1708329034735,-419.0,0.00038663,14]
[314420930,1708329034744,-848.75335917,0.00038693,2]
[314420931,1708329034753,-4105.79854593,0.00038694,2]
[314420932,1708329034762,-154.32766982,0.00038764,2]
[314420933,1708329034771,-1608.714,0.00038773,2]
[314420934,1708329034780,-159.7430366,0.00038774,12]
[314420935,1708329034790,-150.76746789,0.00038775,9]
[314420936,1708329034802,-5000.0,0.00038784,3]
[314420937,1708329034811,-194.09025924,0.00038785,2]
[314420938,1708329034821,-596.36008738,0.00038785,2]
[314420939,1708329034830,-194.93100649,0.00038785,7]
[314420940,1708329034840,-1014.95390433,0.00038785,2]
[314420941,1708329034850,-1699.95597173,0.00038789,12]
[314420942,1708329034860,-702.69289,0.0003879,2]
[314420943,1708329034869,-309346.559575,0.0003879,4]
[314420944,1708329034879,-1000.0,0.00038794,2]
[314420945,1708329034889,-926.33418341,0.00038795,2]
[314420946,1708329034898,-158.03932342,0.00038795,2]
[314420947,1708329034909,-323018.86593699,0.000388,3]
[314420948,1708329034928,-280.3205,0.000388,3]
[314420949,1708329035026,-0.00242622,0.000388,3]
[314420950,1708329035039,-378474.17962001,0.000388,3]
[314420951,1708329035050,-77336.6398939,0.00038864,4]
[314420952,1708329035060,-77336.6398939,0.00038865,4]
[314420953,1708329035070,-151.0,0.00038865,7]
[314420954,1708329035081,-162.545799,0.00038865,14]
[314420955,1708329035090,-187.104056,0.00038865,14]
[314420956,1708329035100,-187.104056,0.00038865,14]
[314420957,1708329035110,-10000.0,0.00038865,14]
[314420958,1708329035120,-10000.0,0.00038865,14]
[314420959,1708329035130,-182.261622,0.00038865,14]
[314420960,1708329035139,-1308.817598,0.00038865,14]
[314420961,1708329035149,-182.261622,0.00038865,14]
[314420962,1708329035160,-369.136153,0.00038865,14]
[314420963,1708329035170,-327.673024,0.00038865,14]
[314420964,1708329035181,-369.136153,0.00038865,14]
[314420965,1708329035191,-383.320266,0.00038865,14]
[314420966,1708329035201,-327.673024,0.00038865,14]
[314420967,1708329035211,-383.320266,0.00038865,14]
[314420968,1708329035221,-3902.054078,0.00038865,14]
[314420969,1708329035231,-195.974158,0.00038865,14]
[314420970,1708329035241,-2990.14038451,0.00038865,14]
[314420973,1708329038186,-207.0,0.0003496,2]
[314420974,1708329038195,-207.0,0.0003809,9]
[314420975,1708329038204,-2020.69084422,0.00038785,2]
[314420976,1708329038213,-7725.9972325,0.000388,3]
[314420984,1708329040731,-1311.765,0.000388,3]
[314420991,1708329042860,-1017.3105575,0.00038795,30]
[314420992,1708329042869,-3596.70290702,0.000388,3]
[314420993,1708329042916,-6998.95951514,0.000388,3]
[314420994,1708329042928,-8787.73064322,0.000388,3]
[314420995,1708329042940,-5244.8,0.000388,3]
[314420996,1708329042971,-8696.61290907,0.000388,3]
[314420997,1708329042982,-3972.86806791,0.000388,3]
[314420998,1708329043031,-13371.6643437,0.000388,3]
[314420999,1708329043045,-936.63718549,0.000388,3]
[314421000,1708329043056,-5035.30893621,0.000388,3]
[314421002,1708329045891,-220.0162748,0.00038794,2]
[314421003,1708329045900,-768.67781071,0.00038799,4]
[314421004,1708329045910,-472.7559145,0.000388,3]
[314421005,1708329046001,-13096.24999997,0.000388,3]
[314421006,1708329046110,-3572.13985417,0.000388,3]
[314421007,1708329046120,-911.91369349,0.00038865,14]
[314421008,1708329046129,-223.887579,0.00038865,14]
[314421009,1708329046138,-195.974158,0.00038865,14]
[314421010,1708329046148,-223.887579,0.00038865,14]
[314421011,1708329046158,-151.0,0.00038865,14]
[314421012,1708329046168,-151.0,0.00038865,14]
[314421013,1708329046177,-151.0,0.00038865,14]
[314421014,1708329046186,-1229.096532,0.00038865,14]
[314421015,1708329046195,-152.830159,0.00038865,14]
[314421016,1708329046205,-903.75644637,0.00038865,14]
[314421017,1708329048230,-325.34008563,0.00038865,14]
[314421018,1708329048240,-239.980225,0.00038865,14]
[314421019,1708329048249,-239.980225,0.00038865,14]
[314421020,1708329048258,-1169.386466,0.00038865,14]
[314421021,1708329048268,-1169.386466,0.00038865,14]
[314421022,1708329048277,-2914.36246754,0.00038865,14]
[314421023,1708329070955,1980.32516975,0.0002509,2]
[314421024,1708329113965,2664.00626508,0.00021,4]
[314421025,1708329128803,3355.66856517,0.000199,3]
[314421026,1708329128831,1150.70299976,0.000199,3]
[314421027,1708329167313,10705.67191646,0.0002509,2]
[314421028,1708329191649,205.0,9.8e-05,2]
[314421029,1708329262457,357.31015024,0.00025,2]
[314421032,1708329584220,-1372.34906709,0.00040368,60]
[314421033,1708329584242,-170.83981171,0.00040368,30]
[314421034,1708329584264,-577.43723592,0.00040368,30]
[314421035,1708329584287,-152.17925861,0.00040368,120]
[314421036,1708329584309,-190.96944775,0.00040368,60]
[314421037,1708329584332,-284.5300206,0.00040368,120]
[314421038,1708329584356,-253.49282628,0.00040368,120]
[314421039,1708329584378,-5524.09786199,0.00040368,120]
[314421040,1708329584406,-152.11340764,0.00040368,60]
[314421041,1708329584428,-153.6795462,0.00040368,30]
[314421042,1708329584451,-374.19143146,0.00040368,120]
[314421043,1708329584473,-278.64353788,0.00040368,120]
[314421044,1708329584496,-26202.54251754,0.00040368,30]
[314421045,1708329584518,-1139.8799008,0.00040368,30]
[314421046,1708329584541,-2032.50459762,0.00040368,30]
[314421047,1708329584563,-2064.0,0.00040368,30]
[314421048,1708329584587,-238.08630389,0.00040368,120]
[314421049,1708329584610,-209.03611046,0.00040368,120]
[314421050,1708329584633,-243.19090447,0.00040368,30]
[314421051,1708329584656,-100606.11,0.00040368,30]
[314421052,1708329584680,-952.53198172,0.00040368,120]
[314421053,1708329584702,-1623.68,0.00040368,30]
[314421054,1708329584724,-2698.11330031,0.00040368,120]
[314421055,1708329584747,-1000.0,0.00040368,30]
[314421056,1708329584770,-1085.0,0.00040368,120]
[314421057,1708329584793,-711.21686559,0.00040368,120]
[314421058,1708329584816,-300.0,0.00040368,36]
[314421059,1708329584838,-178.57211622,0.00040368,30]
[314421060,1708329584860,-849231.01194825,0.00040368,32]
[314421061,1708329592034,-24316.26955522,0.0004,40]
[314421062,1708329592059,-3000.0,0.0004,41]
[314421063,1708329592085,-3000.0,0.0004001,41]
[314421064,1708329592108,-4397.631024,0.0004002,41]
[314421065,1708329592150,-300.0,0.00041,42]
[314421066,1708329592178,-500.0,0.00041,120]
[314421067,1708329592202,-7236.85675433,0.00041,120]
[314421068,1708329592224,-11061.81,0.00041,120]
[314421069,1708329592247,-2626.9054836,0.00041,120]
[314421070,1708329592270,-250.0,0.00041,120]
[314421071,1708329592297,-1032.53728664,0.00041096,120]
[314421072,1708329592321,-2972.08293337,0.00041643,120]
[314421073,1708329592345,-150.5,0.0004189,120]
[314421074,1708329592367,-150.5,0.000419,120]
[314421075,1708329592390,-150.5,0.0004191,120]
[314421076,1708329592416,-211.05,0.0004196,120]
[314421077,1708329592440,-150.5,0.0004197,120]
[314421078,1708329592465,-150.5,0.0004197,120]
[314421079,1708329592488,-150.5,0.0004198,120]
[314421080,1708329592511,-150.5,0.0004198,120]
[314421081,1708329592534,-150.5,0.0004199,120]
[314421082,1708329592558,-150.5,0.0004199,120]
[314421083,1708329592583,-952.9512,0.00042,59]
[314421084,1708329592606,-300.0,0.00042,43]
[314421085,1708329592629,-1422.95361601,0.00042,120]
[314421086,1708329592652,-334.4081,0.00042,59]
[314421087,1708329592675,-160.0,0.00042,77]
[314421088,1708329592698,-150.5,0.00042151,120]
[314421089,1708329592720,-150.5,0.00042161,120]
[314421090,1708329592743,-150.5,0.00042171,120]
[314421091,1708329592770,-293.41,0.00042171,120]
[314421092,1708329592793,-241.24,0.00042171,120]
[314421093,1708329592815,-158.0,0.00042288,90]
[314421094,1708329593034,-2009.84640023,0.000425,60]
[314421095,1708329593057,-2433.17291481,0.000427,120]
[314421096,1708329593083,-150.5,0.0004297,120]
[314421097,1708329593106,-150.5,0.0004298,120]
[314421098,1708329593128,-150.5,0.0004299,120]
[314421099,1708329593151,-155.0,0.0004299,120]
[314421100,1708329593174,-176.02,0.0004299,120]
[314421101,1708329593197,-1004.94,0.00043,120]
[314421102,1708329593218,-50000.0,0.00043,40]
[314421103,1708329593240,-300.0,0.00043,44]
[314421104,1708329593266,-161.30251625,0.00043735,120]
[314421105,1708329593288,-364.10768034,0.00043809,120]
[314421106,1708329593312,-159.34,0.0004399,120]
[314421107,1708329593334,-4307.60755786,0.00044,120]
[314421108,1708329593358,-357.899986,0.00044,45]
[314421109,1708329593379,-1449.4727851,0.00044,120]
[314421110,1708329593404,-160.0,0.00044,89]
[314421111,1708329593428,-194.86128517,0.00044384,60]
[314421112,1708329593451,-202.69472243,0.000445,120]
[314421113,1708329593472,-157.07861192,0.000447,120]
[314421114,1708329593495,-5039.50160402,0.000448,48]
[314421115,1708329593518,-194.86128517,0.00044959,60]
[314421116,1708329593540,-194.14073035,0.00044959,60]
[314421117,1708329593562,-243.9829201,0.00044995,60]
[314421118,1708329593599,-100000.0,0.00045,35]
[314421119,1708329593626,-1000.0,0.00045,45]
[314421120,1708329593650,-1000.0,0.00045,45]
[314421121,1708329593674,-1000.0,0.00045,45]
[314421122,1708329593698,-371.33791639,0.00045,45]
[314421123,1708329593722,-250.0,0.00045,120]
[314421124,1708329593747,-157.0,0.00045107,90]
[314421125,1708329593774,-2947.71285112,0.00045415,60]
[314421126,1708329593798,-2664.77135418,0.00045415,60]
[314421127,1708329593821,-472.13965739,0.00045415,60]
[314421128,1708329593845,-45397.57079432,0.000456,120]
[314421129,1708329593869,-278.24319726,0.000458,120]
[314421130,1708329593893,-200.0,0.00045987,71]
[314421131,1708329593920,-100000.0,0.00046,36]
[314421132,1708329593943,-9775.2,0.00046,120]
[314421133,1708329593966,-10000.0,0.00046,120]
[314421134,1708329593990,-25000.0,0.00046,120]
[314421135,1708329594013,-20239.0,0.00046,120]
[314421136,1708329594035,-280.0,0.00046,101]
[314421137,1708329594128,1354.23,0.00046,33]
[314421138,1708329596500,1354.2,0.00046,33]
[314421139,1708329601494,-992024.70687985,0.00040368,32]
[314421140,1708329601517,-870.05219542,0.00040368,120]
[314421141,1708329601540,-1138.89693226,0.00040368,120]
[314421142,1708329601562,-270.77642402,0.00040368,120]
[314421143,1708329601584,-328.1008825,0.00040368,30]
[314421144,1708329601608,-312.48999945,0.00040368,120]
[314421145,1708329601631,-355.00984534,0.00040368,120]
[314421146,1708329601655,-156.52846427,0.00040368,120]
[314421147,1708329601678,-757.93323932,0.00040368,30]
[314421148,1708329601701,-2946.05431458,0.00040368,120]
[314421149,1708329601724,-323.10274224,0.00040368,120]
[314421150,1708329601746,-202.34925018,0.00040368,120]
[314421151,1708329601778,-313.99883057,0.00040368,30]
[314421152,1708329607303,-2175.33420628,0.00040368,30]
[314421153,1708329607328,-310.6213948,0.00040368,120]
[314421154,1708329607356,-225.29780921,0.00040368,120]
[314421155,1708329607381,-325.521468,0.00040368,119]
[314421156,1708329607408,-279.50944117,0.00040368,120]
[314421157,1708329607434,-1905.69670694,0.00040368,120]
[314421158,1708329607459,-171.25732708,0.00040368,120]
[314421159,1708329607484,-251.20091056,0.00040368,120]
[314421160,1708329607512,-476.36211,0.00040368,120]
[314421161,1708329607538,-508.26055083,0.00040368,30]
[314421162,1708329607563,-1172.69322917,0.00040368,30]
[314421163,1708329607588,-2210.44966648,0.00040368,30]
[314421164,1708329607612,-6800.35996751,0.00040368,120]
[314421165,1708329607637,-278.07015596,0.00040368,120]
[314421166,1708329607664,-2341.37591181,0.00040368,30]
[314421167,1708329607689,-217.76217983,0.00040368,60]
[314421168,1708329607713,-321.64469045,0.00040368,30]
[314421169,1708329607745,-53558.14057325,0.00040368,30]
[314421170,1708329607769,-727.61025576,0.00040368,30]
[314421171,1708329607794,-654.41804143,0.00040368,120]
[314421172,1708329607818,-208.25855943,0.00040368,120]
[314421173,1708329607841,-7320.70865674,0.00040368,60]
[314421174,1708329607864,-151.0,0.00040368,30]
[314421175,1708329607887,-1736.356122,0.00040368,30]
[314421176,1708329607911,-150.0,0.00040368,30]
[314421177,1708329607936,-196.92349624,0.00040368,30]
[314421178,1708329607959,-150.0,0.00040368,30]
[314421179,1708329607983,-245.716411,0.00040368,63]
[314421180,1708329608007,-153.30983069,0.00040368,60]
[314421181,1708329608030,-153.30983069,0.00040368,60]
[314421182,1708329608052,-153.30983072,0.00040368,60]
[314421183,1708330037139,-159.98046682,0.000271,2]
[314421184,1708330037159,-292.48087349,0.000272,2]
[314421185,1708330037186,-656.83856631,0.000272,2]
[314421186,1708330043135,-314.95641442,0.00027099,2]
[314421189,1708330147103,-490.91856827,0.00027199,2]
[314421190,1708330147122,-159.84589869,0.000272,2]
[314421191,1708330147143,-67.85553304,0.00029475,2]
[314421194,1708330170099,-103.24446696,0.00029475,2]
[314421195,1708330173091,-948.52842482,0.00032899,4]
[314421206,1708330232152,-341.39937542,0.00032899,4]
[314421207,1708330232162,-500.0,0.000329,2]
[314421208,1708330232172,-155.37392777,0.00034,2]
[314421209,1708330232181,-150.0,0.00034099,3]
[314421210,1708330232190,-150.0,0.00034099,3]
[314421211,1708330232200,-512.74011162,0.000341,2]
[314421212,1708330232211,-1109.25988838,0.000341,2]
[314421213,1708330232222,-4496.62485043,0.000341,2]
[314421214,1708330232249,-4702.37514957,0.000341,2]
[314421215,1708330232260,-723.7,0.00034805,2]
[314421216,1708330232269,-1948.24002774,0.00035,30]
[314421217,1708330232279,-499.99,0.00035175,2]
[314421218,1708330232289,-155.37392774,0.00035199,2]
[314421219,1708330232298,-200.0,0.000356,8]
[314421220,1708330232307,-151.0,0.00035748,30]
[314421221,1708330232316,-677.1,0.0003576,2]
[314421222,1708330232326,-13493.49534337,0.00036,2]
[314421223,1708330232335,-768.67781071,0.00036199,4]
[314421224,1708330232345,-332.74,0.00036199,2]
[314421225,1708330232354,-2000.0,0.000362,2]
[314421226,1708330232364,-203.67734083,0.00036285,2]
[314421227,1708330232373,-155.37392774,0.00036398,2]
[314421228,1708330232382,-184.32,0.00036466,120]
[314421229,1708330232392,-151.0,0.00036478,7]
[314421230,1708330232401,-182.12,0.0003649,2]
[314421231,1708330232410,-1372.92,0.0003651,2]
[314421232,1708330232419,-863.08,0.00036543,2]
[314421233,1708330232429,-1954.77,0.00036553,2]
[314421234,1708330232439,-2491.45,0.00036598,2]
[314421235,1708330232448,-200.0,0.000366,10]
[314421236,1708330232457,-2000.0,0.00036622,2]
[314421238,1708330232467,-168.94,0.00036623,2]
[314421240,1708330232476,-23563.73,0.00036627,2]
[314421242,1708330232485,-1023.99,0.00036639,2]
[314421243,1708330232494,-155.15,0.00036653,2]
[314421245,1708330232503,-4606.12,0.0003668,2]
[314421247,1708330232512,-23392.50835073,0.00036723,2]
[314421249,1708330232524,-507.49164927,0.00036723,2]
[314421251,1708330232534,-578.30218394,0.0003679,2]
[314421253,1708330232566,-119.29781606,0.0003679,2]
[314421254,1708330232576,-173.5,0.00036821,2]
[314421255,1708330232586,-250.0,0.00036828,2]
[314421256,1708330232596,-250.0,0.0003684,2]
[314421257,1708330232606,-1413.42,0.00036849,2]
[314421258,1708330232616,-922.27,0.00036861,2]
[314421259,1708330232626,-904.99,0.00036879,2]
[314421260,1708330232635,-500.0,0.0003688,7]
[314421261,1708330232644,-10.80303408,0.00036906,2]
[314421262,1708330232656,-139.19696592,0.00036906,2]
[314421263,1708330232666,-163.0,0.00036996,2]
[314421264,1708330232675,-332.74726443,0.00037,15]
[314421265,1708330232687,-1631.12611586,0.00037,15]
[314421266,1708330232699,-3036.12661971,0.00037,15]
[314421267,1708330232708,-1000.0,0.00037,2]
[314421268,1708330232718,-182.71,0.00037013,2]
[314421269,1708330232727,-723.7,0.00037069,2]
[314421270,1708330232735,-302.4,0.000371,2]
[314421271,1708330232745,-155.0,0.00037121,4]
[314421272,1708330232755,-151.0,0.00037222,4]
[314421273,1708330232764,-812.82845051,0.00037386,4]
[314421274,1708330232774,-171.54,0.00037419,2]
[314421275,1708330232783,-567.63941867,0.00037434,5]
[314421276,1708330232793,-193.047285,0.00037487,2]
[314421277,1708330232802,-155.37392774,0.00037596,2]
[314421278,1708330232811,-200.0,0.000376,11]
[314421279,1708330232820,-166.52,0.00037733,2]
[314421280,1708330232830,-173.5,0.00037742,2]
[314421281,1708330232839,-157.62230274,0.0003788,2]
[314421282,1708330232849,-177.53,0.0003788,2]
[314421283,1708330232859,-863.08,0.00037895,2]
[314421284,1708330232868,-150.0,0.000379,2]
[314421285,1708330232878,-500.0,0.000379,2]
[314421286,1708330232887,-250.0,0.000379,2]
[314421287,1708330232897,-1077.18903704,0.00037961,8]
[314421288,1708330232907,-2317.37792496,0.00037961,7]
[314421289,1708330232917,-274.55785872,0.00037961,7]
[314421290,1708330232926,-279.36378858,0.00037961,7]
[314421291,1708330232935,-500.0,0.00037976,7]
[314421292,1708330232945,-151.0,0.00037982,2]
[314421293,1708330232955,-185.0,0.00038,2]
[314421294,1708330232965,-1021.53173657,0.00038,2]
[314421295,1708330232982,-28.62872736,0.00038,2]
[314421296,1708330232992,-1050.16046393,0.00038,2]
[314421297,1708330233002,-796.5981253,0.00038,2]
[314421298,1708330233013,-253.56233863,0.00038,2]
[314421299,1708330233023,-1050.16046393,0.00038,2]
[314421300,1708330233032,-630.51839923,0.00038,2]
[314421301,1708330233045,-419.6420647,0.00038,2]
[314421302,1708330233055,-17.62476611,0.00038,2]
[314421303,1708330233066,-284.49703418,0.00038,2]
[314421304,1708330233087,-748.03866364,0.00038,2]
[314421305,1708330233096,-1050.16046393,0.00038,2]
[314421306,1708330233279,-1050.16046393,0.00038,2]
[314421307,1708330233289,-1050.16046393,0.00038,2]
[314421308,1708330233300,-1050.16046393,0.00038,2]
[314421309,1708330233309,-1050.16046393,0.00038,2]
[314421310,1708330233318,-1050.16046393,0.00038,2]
[314421311,1708330233328,-1050.16046393,0.00038,2]
[314421312,1708330233337,-677.1,0.0003814,2]
[314421313,1708330233347,-250.0,0.00038174,2]
[314421314,1708330233357,-207.0,0.0003822,2]
[314421315,1708330233366,-1050.16046393,0.00038278,2]
[314421316,1708330233375,-1050.16046393,0.00038278,2]
[314421317,1708330233385,-2363.0616,0.00038288,2]
[314421318,1708330233394,-200.47291951,0.00038356,2]
[314421319,1708330233404,-554.51,0.00038356,15]
[314421320,1708330233414,-150.0,0.00038356,2]
[314421321,1708330233423,-1050.16046393,0.00038378,2]
[314421322,1708330233433,-1050.16046393,0.00038378,2]